bitfinex/quotes_BTCUSD_20241002
["timestamp","ask_amount","ask_price","bid_price","bid_amount"]
[1727876390447,0.164639,60739.0,60738.0,0.08178063]
[1727876390713,0.329237,60747.0,60738.0,0.08178063]
[1727876390714,0.329237,60747.0,60738.0,0.09578063]
[1727876390962,0.329249,60745.0,60739.0,0.329276]
[1727876391204,0.25001523,60753.0,60736.0,0.0808]
[1727876391205,0.164644,60737.0,60736.0,0.0808]
[1727876391470,0.164668,60728.0,60727.0,0.0765]
[1727876392167,0.164666,60729.0,60727.0,0.0765]
[1727876392389,0.164663,60730.0,60727.0,0.0765]
[1727876392609,0.24701523,60746.0,60728.0,0.03243342]
[1727876392830,0.24701523,60736.0,60735.0,0.164649]
[1727876393050,0.329248,60745.0,60728.0,0.03243342]
[1727876393051,0.329253,60744.0,60736.0,0.329292]
[1727876393283,0.24701523,60746.0,60728.0,0.03243342]
[1727876393536,0.329311,60733.0,60727.0,0.018]
[1727876393762,0.1,60745.0,60732.0,0.24701523]
[1727876393984,0.164644,60737.0,60732.0,0.164657]
[1727876394212,0.24701523,60740.0,60727.0,0.006]
[1727876394433,0.24701523,60740.0,60735.0,0.014]
[1727876394434,0.164646,60736.0,60735.0,0.014]
[1727876394652,0.32931,60733.0,60726.0,0.32683423]
[1727876394872,0.1,60745.0,60726.0,0.42539055]
[1727876395094,0.329283,60738.0,60732.0,0.164656]
[1727876395316,0.329274,60740.0,60731.0,0.00129534]
[1727876395553,0.164647,60736.0,60731.0,0.493977]
[1727876395771,0.164647,60736.0,60731.0,0.493978]
[1727876395994,0.164655,60733.0,60729.0,0.164665]
[1727876396257,0.164658,60732.0,60730.0,0.11501882]
[1727876396481,0.24701523,60743.0,60727.0,0.164671]
[1727876396482,0.16466,60731.0,60727.0,0.164671]
[1727876396710,0.329282,60739.0,60727.0,0.16467]
[1727876396711,0.164664,60730.0,60727.0,0.16467]
[1727876396929,0.329306,60734.0,60726.0,0.079819]
[1727876397151,0.329303,60735.0,60727.0,0.329341]
[1727876397380,0.329303,60735.0,60726.0,0.079819]
[1727876397381,0.164668,60728.0,60726.0,0.079819]
[1727876397602,0.24701523,60733.0,60726.0,0.079819]
[1727876397603,0.329283,60738.0,60726.0,0.079819]
[1727876397863,0.24701523,60743.0,60726.0,0.079819]
[1727876398236,0.24701523,60743.0,60729.0,0.003]
[1727876398238,0.164634,60741.0,60733.0,0.329306]
[1727876398435,0.164631,60742.0,60737.0,0.164643]
[1727876398647,0.24701523,60752.0,60732.0,0.28170897]
[1727876398857,0.24701523,60745.0,60733.0,0.25030783]
[1727876399082,0.24701523,60745.0,60738.0,0.329279]
[1727876399344,0.329213,60751.0,60738.0,0.08]
[1727876399417,0.24701523,60753.0,60750.0,0.164606]
[1727876399615,0.24701523,60753.0,60751.0,0.164605]
[1727876399833,0.24701523,60753.0,60752.0,0.164603]
[1727876400038,0.24701523,60753.0,60739.0,0.05483652]
[1727876400039,0.164594,60756.0,60741.0,0.24701523]
[1727876400244,0.001638,60767.0,60752.0,0.28170897]
[1727876400469,0.24701523,60758.0,60757.0,0.16459]
[1727876400697,0.164595,60755.0,60754.0,0.079]
[1727876400922,0.164574,60763.0,60759.0,0.164584]
[1727876401134,0.001638,60767.0,60756.0,0.16459]
[1727876401135,0.24701523,60762.0,60756.0,0.16459]
[1727876401347,0.24701523,60762.0,60754.0,0.079]
[1727876401348,0.164595,60755.0,60754.0,0.079]
[1727876401575,0.164595,60755.0,60754.0,0.11160152]
[1727876402027,0.164595,60755.0,60752.0,0.003]
[1727876402028,0.1646,60753.0,60752.0,0.003]
[1727876402479,0.329159,60761.0,60753.0,0.164598]
[1727876402688,0.24865323,60760.0,60752.0,0.003]
[1727876402895,0.001638,60760.0,60755.0,0.329187]
[1727876403123,0.166222,60760.0,60756.0,0.22271122]
[1727876403377,0.166222,60760.0,60759.0,0.009]
[1727876403603,0.166222,60760.0,60756.0,0.05812022]
[1727876403604,0.001638,60760.0,60756.0,0.05812022]
[1727876403825,0.001638,60760.0,60757.0,0.09655185]
[1727876404031,0.164587,60758.0,60757.0,0.09655185]
[1727876404240,0.164594,60756.0,60751.0,0.41162123]
[1727876404462,0.164602,60753.0,60751.0,0.24701523]
[1727876404722,0.32918,60757.0,60749.0,0.164611]
[1727876404953,0.001638,60760.0,60749.0,0.32922]
[1727876405164,0.24701523,60757.0,60753.0,0.001]
[1727876405369,0.164585,60759.0,60755.0,0.164595]
[1727876405586,0.015638,60760.0,60756.0,0.0494793]
[1727876405792,0.015638,60760.0,60751.0,0.329211]
[1727876405793,0.001638,60760.0,60751.0,0.329211]
[1727876406000,0.001638,60760.0,60734.0,0.04926833]
[1727876406001,0.24701523,60756.0,60734.0,0.04926833]
[1727876406221,0.200838,60760.0,60738.0,0.24701523]
[1727876406222,0.164638,60739.0,60738.0,0.24701523]
[1727876406655,0.164651,60735.0,60732.0,0.000819]
[1727876406868,0.164655,60733.0,60732.0,0.000819]
[1727876407087,0.164651,60735.0,60732.0,0.000819]
[1727876407325,0.164653,60734.0,60732.0,0.000819]
[1727876407560,0.164652,60735.0,60732.0,0.000819]
[1727876407766,0.164655,60733.0,60732.0,0.000819]
[1727876408193,0.164655,60733.0,60732.0,0.012819]
[1727876408403,0.32018951,60754.0,60732.0,0.012819]
[1727876408628,0.164632,60742.0,60737.0,0.164642]
[1727876408841,0.329263,60742.0,60736.0,0.164645]
[1727876409067,0.329225,60749.0,60738.0,0.329279]
[1727876409277,0.329229,60748.0,60741.0,0.164632]
[1727876409530,0.329229,60748.0,60732.0,0.018819]
[1727876409531,0.329289,60737.0,60732.0,0.018819]
[1727876409758,0.16465,60735.0,60732.0,0.018819]
[1727876409977,0.329291,60737.0,60732.0,0.018819]
[1727876410189,0.1,60753.0,60733.0,0.329305]
[1727876410406,0.164642,60738.0,60733.0,0.164652]
[1727876410618,0.1,60753.0,60732.0,0.020819]
[1727876410829,0.164647,60736.0,60732.0,0.171475]
[1727876411055,0.164647,60736.0,60732.0,0.181475]
[1727876411325,0.164647,60736.0,60732.0,0.165475]
[1727876411553,0.329275,60740.0,60736.0,0.001]
[1727876411554,0.493934,60737.0,60736.0,0.001]
[1727876411784,0.6091811,60737.0,60736.0,0.001]
[1727876412006,0.493934,60737.0,60736.0,0.001]
[1727876412231,0.164655,60733.0,60732.0,0.000819]
[1727876412445,0.264655,60733.0,60732.0,0.003819]
[1727876412665,0.3899096,60733.0,60732.0,0.003819]
[1727876412881,0.3899096,60733.0,60732.0,0.000819]
[1727876412882,0.264655,60733.0,60732.0,0.000819]
[1727876413317,0.264655,60733.0,60732.0,0.011819]
[1727876413533,0.37802785,60745.0,60732.0,0.011819]
[1727876413534,0.04878285,60745.0,60733.0,0.0812]
[1727876413755,0.24701523,60743.0,60733.0,0.0812]
[1727876413973,0.1,60747.0,60734.0,0.06726435]
[1727876414425,0.164655,60733.0,60732.0,0.000819]
[1727876415083,0.175655,60733.0,60732.0,0.001819]
[1727876415520,0.164655,60733.0,60732.0,0.000819]
[1727876415941,0.170655,60733.0,60732.0,0.001819]
[1727876416373,0.164655,60733.0,60732.0,0.000819]
[1727876416585,0.171655,60733.0,60732.0,0.001819]
[1727876417216,0.171655,60733.0,60732.0,0.003819]
[1727876417917,0.164655,60733.0,60732.0,0.000819]
[1727876418129,0.164655,60733.0,60732.0,0.001819]
[1727876418349,0.171655,60733.0,60732.0,0.008819]
[1727876418606,0.171655,60733.0,60732.0,0.166476]
[1727876418607,0.007,60733.0,60732.0,0.166476]
[1727876418845,0.24701523,60739.0,60732.0,0.000819]
[1727876419302,0.164655,60733.0,60732.0,0.000819]
[1727876419734,0.169655,60733.0,60732.0,0.000819]
[1727876420165,0.169655,60733.0,60732.0,0.001819]
[1727876420404,0.269655,60733.0,60732.0,0.000819]
[1727876420633,0.169655,60733.0,60732.0,0.000819]
[1727876420848,0.169655,60733.0,60732.0,0.014819]
[1727876421076,0.005,60733.0,60732.0,0.014819]
[1727876421311,0.164652,60734.0,60732.0,0.014819]
[1727876421541,0.001,60733.0,60732.0,0.185476]
[1727876421778,0.001,60733.0,60732.0,0.2369573]
[1727876422220,0.24701523,60742.0,60737.0,0.164643]
[1727876422428,0.329243,60746.0,60739.0,0.164638]
[1727876422654,0.16462,60746.0,60732.0,0.0713003]
[1727876422901,0.164627,60744.0,60739.0,0.164637]
[1727876423121,0.164627,60744.0,60733.0,0.24839745]
[1727876423122,0.164631,60742.0,60738.0,0.164639]
[1727876423334,0.164623,60745.0,60741.0,0.164632]
[1727876423536,0.329219,60750.0,60738.0,0.0812]
[1727876423747,0.164615,60748.0,60738.0,0.0812]
[1727876423955,0.330844,60753.0,60739.0,0.06575022]
[1727876424187,0.00164,60753.0,60740.0,0.00082713]
[1727876424413,0.00164,60753.0,60749.0,0.164611]
[1727876424624,0.00164,60753.0,60743.0,0.329251]
[1727876424839,0.003,60742.0,60741.0,0.164633]
[1727876425056,0.003,60742.0,60741.0,0.55005585]
[1727876425289,0.00164,60753.0,60752.0,0.438103]
[1727876426619,0.00264,60753.0,60752.0,0.448103]
[1727876427695,0.00164,60753.0,60752.0,0.0752]
[1727876427914,0.00164,60753.0,60752.0,0.2802457]
[1727876428131,0.00164,60753.0,60752.0,0.56486247]
[1727876428571,0.00164,60753.0,60752.0,0.60881247]
[1727876428796,0.00164,60753.0,60752.0,0.59481247]
[1727876428979,0.00264,60753.0,60752.0,0.60481247]
[1727876429188,0.00264,60753.0,60752.0,0.61881247]
[1727876429397,0.001638,60766.0,60752.0,0.61881247]
[1727876429398,0.001638,60766.0,60765.0,0.197518]
[1727876429617,0.24701523,60772.0,60771.0,0.197502]
[1727876429826,0.24701523,60781.0,60780.0,0.164527]
[1727876430029,0.24701523,60781.0,60780.0,0.1809797]
[1727876430244,0.24701523,60799.0,60791.0,0.164498]
[1727876430710,0.24701523,60802.0,60787.0,0.276]
[1727876430932,0.328978,60795.0,60787.0,0.440508]
[1727876431142,0.164489,60795.0,60788.0,0.24701523]
[1727876431346,0.164489,60795.0,60789.0,0.23018572]
[1727876431568,0.328972,60796.0,60790.0,0.01286248]
[1727876431778,0.164498,60791.0,60790.0,0.01286248]
[1727876431986,0.164513,60786.0,60780.0,0.42799393]
[1727876432211,0.164519,60784.0,60780.0,0.26346793]
[1727876432420,0.329022,60787.0,60774.0,0.329087]
[1727876432645,0.1,60785.0,60772.0,0.329097]
[1727876432868,0.329044,60783.0,60773.0,0.329091]
[1727876433074,0.1,60785.0,60771.0,0.24701523]
[1727876433336,0.1,60785.0,60769.0,0.443563]
[1727876433337,0.32909,60774.0,60770.0,0.24701523]
[1727876433556,0.164552,60771.0,60770.0,0.30134193]
[1727876433780,0.329094,60773.0,60765.0,0.0202518]
[1727876433992,0.164573,60763.0,60762.0,0.24701523]
[1727876434226,0.1,60773.0,60762.0,0.24701523]
[1727876434472,0.34701523,60773.0,60772.0,0.004]
[1727876434703,0.56916277,60773.0,60772.0,0.004]
[1727876435142,0.329104,60771.0,60766.0,0.24701523]
[1727876435365,0.023,60773.0,60759.0,0.24701523]
[1727876435366,0.1,60768.0,60759.0,0.24701523]
[1727876435568,0.164572,60764.0,60760.0,0.164581]
[1727876435976,0.164569,60765.0,60760.0,0.16458]
[1727876436200,0.164571,60764.0,60760.0,0.16458]
[1727876436404,0.164588,60758.0,60754.0,0.164596]
[1727876436615,0.164559,60769.0,60764.0,0.164569]
[1727876436836,0.1,60771.0,60764.0,0.164569]
[1727876437087,0.1,60771.0,60755.0,0.0031923]
[1727876437088,0.1,60768.0,60765.0,0.164568]
[1727876437323,0.164565,60767.0,60760.0,0.013]
[1727876437535,0.1,60767.0,60761.0,0.57617223]
[1727876437746,0.1,60767.0,60763.0,0.329146]
[1727876437961,0.001,60764.0,60763.0,0.164573]
[1727876438394,0.429075,60777.0,60762.0,0.09183402]
[1727876438625,0.165564,60767.0,60763.0,0.164573]
[1727876438840,0.165564,60767.0,60762.0,0.329151]
[1727876438841,0.001,60767.0,60762.0,0.329151]
[1727876439070,0.329115,60769.0,60755.0,0.329187]
[1727876439296,0.164569,60765.0,60759.0,0.164582]
[1727876439503,0.32913,60767.0,60758.0,0.24701523]
[1727876439728,0.164575,60763.0,60759.0,0.22837963]
[1727876439954,0.164569,60765.0,60760.0,0.164581]
[1727876440167,0.164569,60765.0,60762.0,0.013]
[1727876440383,0.164573,60763.0,60762.0,0.000817]
[1727876441212,0.1,60775.0,60762.0,0.000817]
[1727876441424,0.164573,60763.0,60762.0,0.000817]
[1727876441872,0.001,60763.0,60762.0,0.005817]
[1727876442292,0.001,60763.0,60762.0,0.0557739]
[1727876442518,0.329096,60773.0,60762.0,0.0507739]
[1727876442723,0.164558,60769.0,60765.0,0.164566]
[1727876442937,0.164553,60771.0,60764.0,0.32914]
[1727876443139,0.329079,60776.0,60762.0,0.0507739]
[1727876443343,0.329025,60786.0,60763.0,0.11535471]
[1727876443569,0.329025,60786.0,60767.0,0.164562]
[1727876443570,0.164554,60771.0,60767.0,0.164562]
[1727876443807,0.164547,60773.0,60769.0,0.164556]
[1727876444007,0.329063,60779.0,60766.0,0.24701523]
[1727876444218,0.329025,60786.0,60770.0,0.00937763]
[1727876444219,0.1,60783.0,60770.0,0.00937763]
[1727876444435,0.24701523,60793.0,60772.0,0.164547]
[1727876444436,0.1,60777.0,60772.0,0.164547]
[1727876444637,0.24701523,60793.0,60771.0,0.05855119]
[1727876444638,0.329039,60783.0,60774.0,0.32501523]
[1727876444842,0.24701523,60795.0,60773.0,0.00935669]
[1727876444843,0.24701523,60779.0,60773.0,0.00935669]
[1727876445060,0.5,60792.0,60774.0,0.24701523]
[1727876445273,0.24701523,60788.0,60771.0,0.16455]
[1727876445483,0.164535,60777.0,60776.0,0.24701523]
[1727876445931,0.164535,60777.0,60776.0,0.00933574]
[1727876445932,0.593607,60777.0,60776.0,0.00933574]
[1727876446150,0.164541,60775.0,60773.0,0.007]
[1727876446367,0.164546,60773.0,60772.0,0.049367]
[1727876446778,0.429072,60777.0,60772.0,0.049367]
[1727876446988,0.68375241,60801.0,60776.0,0.164536]
[1727876446989,0.164526,60781.0,60776.0,0.164536]
[1727876447195,0.1,60787.0,60773.0,0.06255022]
[1727876447196,0.1,60784.0,60777.0,0.24701523]
[1727876447405,0.1,60784.0,60774.0,0.081]
[1727876447623,0.329002,60790.0,60776.0,0.24701523]
[1727876447851,0.32897,60796.0,60782.0,0.329042]
[1727876448059,0.32897,60796.0,60779.0,0.1859]
[1727876448288,0.001634,60799.0,60787.0,0.03295]
[1727876448289,0.328958,60798.0,60787.0,0.03295]
[1727876448499,0.164487,60795.0,60790.0,0.329]
[1727876448735,0.328965,60797.0,60793.0,0.0826]
[1727876448961,0.001634,60799.0,60793.0,0.0826]
[1727876449180,0.001634,60799.0,60798.0,0.164479]
[1727876450062,0.001634,60799.0,60798.0,0.197429]
[1727876450504,0.001634,60799.0,60798.0,0.164479]
[1727876450924,0.001634,60799.0,60794.0,0.011555]
[1727876451129,0.164487,60795.0,60794.0,0.011555]
[1727876451343,0.328968,60797.0,60794.0,0.011555]
[1727876451344,0.164485,60796.0,60794.0,0.011555]
[1727876451566,0.328968,60797.0,60795.0,0.0264649]
[1727876451567,0.164481,60797.0,60795.0,0.0264649]
[1727876451775,0.328958,60798.0,60795.0,0.03563168]
[1727876452223,0.001634,60799.0,60795.0,0.03563168]
[1727876452434,0.001634,60799.0,60798.0,0.164479]
[1727876452860,0.001634,60799.0,60798.0,0.17362485]
[1727876453064,0.001634,60799.0,60798.0,0.29354385]
[1727876453274,0.001634,60799.0,60798.0,0.30754385]
[1727876453486,0.001634,60799.0,60798.0,0.29354385]
[1727876453693,0.001634,60799.0,60798.0,0.30754385]
[1727876453930,0.001634,60799.0,60798.0,0.29354385]
[1727876454349,0.001634,60799.0,60798.0,0.34049385]
[1727876454990,0.002634,60799.0,60798.0,0.35049385]
[1727876455632,0.001634,60799.0,60798.0,0.34049385]
[1727876455842,0.002634,60799.0,60798.0,0.34049385]
[1727876456065,0.002634,60799.0,60798.0,0.35449385]
[1727876456269,0.002634,60799.0,60798.0,0.53679385]
[1727876456519,0.002634,60799.0,60798.0,0.52279385]
[1727876456982,0.002634,60799.0,60798.0,0.53679385]
[1727876457232,0.002634,60799.0,60798.0,0.50384385]
[1727876457452,0.002634,60799.0,60798.0,0.75085908]
[1727876457666,0.002634,60799.0,60798.0,0.50384385]
[1727876458766,0.002634,60799.0,60798.0,0.32154385]
[1727876458998,0.16711,60799.0,60798.0,0.03714585]
[1727876459212,0.16711,60799.0,60798.0,0.028]
[1727876459633,0.16711,60799.0,60798.0,0.014]
[1727876460516,0.16611,60799.0,60798.0,0.014]
[1727876460727,0.26711,60799.0,60798.0,0.026]
[1727876461182,0.26611,60799.0,60798.0,0.014]
[1727876461621,0.26611,60799.0,60798.0,0.017]
[1727876461857,0.26611,60799.0,60798.0,0.003]
[1727876462080,0.26611,60799.0,60798.0,0.017]
[1727876462296,0.26611,60799.0,60798.0,0.003]
[1727876462715,0.001634,60799.0,60798.0,0.014]
[1727876462935,0.001634,60799.0,60798.0,0.0482974]
[1727876462936,0.16611,60799.0,60798.0,0.0482974]
[1727876463165,0.16611,60799.0,60798.0,0.014]
[1727876466197,0.26611,60799.0,60798.0,0.014]
[1727876466618,0.001634,60799.0,60798.0,0.014]
[1727876466836,0.16611,60799.0,60798.0,0.014]
[1727876467044,0.26611,60799.0,60798.0,0.014]
[1727876467708,0.54772677,60799.0,60798.0,0.014]
[1727876467926,0.57072677,60799.0,60798.0,0.014]
[1727876468145,0.57072677,60799.0,60784.0,0.24701523]
[1727876468146,0.264514,60785.0,60784.0,0.24701523]
[1727876468604,0.264514,60785.0,60767.0,0.000817]
[1727876468605,0.164535,60777.0,60767.0,0.000817]
[1727876468823,0.329067,60778.0,60767.0,0.000817]
[1727876468824,0.264554,60770.0,60767.0,0.000817]
[1727876469247,0.26456,60768.0,60767.0,0.000817]
[1727876469512,0.40999898,60768.0,60767.0,0.000817]
[1727876469982,0.28956,60768.0,60767.0,0.000817]
[1727876470433,0.36636,60768.0,60767.0,0.000817]
[1727876470647,0.36436,60768.0,60767.0,0.000817]
[1727876471269,0.37136,60768.0,60767.0,0.001817]
[1727876471708,0.37136,60768.0,60767.0,0.005817]
[1727876471923,0.36436,60768.0,60767.0,0.004817]
[1727876472124,0.36436,60768.0,60767.0,0.000817]
[1727876472125,0.28756,60768.0,60767.0,0.000817]
[1727876472354,0.27456,60768.0,60767.0,0.001817]
[1727876472767,0.26456,60768.0,60767.0,0.000817]
[1727876472974,0.27456,60768.0,60767.0,0.001817]
[1727876473202,0.27856,60768.0,60767.0,0.000817]
[1727876474250,0.26456,60768.0,60767.0,0.000817]
[1727876474462,0.27356,60768.0,60767.0,0.000817]
[1727876474666,0.29656,60768.0,60767.0,0.000817]
[1727876474887,0.28956,60768.0,60767.0,0.000817]
[1727876475128,0.289573,60763.0,60762.0,0.000817]
[1727876475339,0.57118977,60763.0,60762.0,0.000817]
[1727876475549,0.56918977,60763.0,60762.0,0.000817]
[1727876476013,0.264573,60763.0,60762.0,0.000817]
[1727876476218,0.270573,60763.0,60762.0,0.001817]
[1727876476643,0.006,60763.0,60762.0,0.166393]
[1727876476862,0.006,60763.0,60762.0,0.0589127]
[1727876477078,0.011,60763.0,60762.0,0.2224887]
[1727876477499,0.164556,60770.0,60764.0,0.49371]
[1727876477728,0.329106,60771.0,60762.0,0.000817]
[1727876477729,0.28161677,60765.0,60762.0,0.000817]
[1727876477949,0.166573,60763.0,60762.0,0.000817]
[1727876478589,0.189573,60763.0,60762.0,0.000817]
[1727876478802,0.33348779,60763.0,60762.0,0.000817]
[1727876479026,0.289573,60763.0,60762.0,0.000817]
[1727876479248,0.294573,60763.0,60762.0,0.001817]
[1727876479465,0.287573,60763.0,60762.0,0.000817]
[1727876479747,0.7321615,60763.0,60762.0,0.005817]
[1727876479984,0.7091615,60763.0,60762.0,0.005817]
[1727876480219,0.164573,60763.0,60762.0,0.000817]
[1727876480639,0.008,60763.0,60762.0,0.0252076]
[1727876481059,0.24701523,60775.0,60762.0,0.0252076]
[1727876481060,0.329092,60774.0,60762.0,0.0252076]
[1727876481274,0.164563,60767.0,60763.0,0.164572]
[1727876481476,0.164566,60766.0,60762.0,0.0252076]
[1727876481691,0.24701523,60775.0,60763.0,0.06282716]
[1727876481900,0.24701523,60782.0,60763.0,0.06282716]
[1727876482147,0.164549,60772.0,60768.0,0.164558]
[1727876482365,0.164554,60770.0,60769.0,0.0164558]
[1727876482795,0.24701523,60782.0,60763.0,0.55654116]
[1727876482796,0.164562,60768.0,60763.0,0.55654116]
[1727876483012,0.329055,60780.0,60763.0,0.06282716]
[1727876483218,0.329055,60780.0,60768.0,0.007]
[1727876483219,0.001,60772.0,60768.0,0.007]
[1727876483428,0.164573,60763.0,60762.0,0.000817]
[1727876484308,0.264573,60763.0,60762.0,0.000817]
[1727876484772,0.33411771,60763.0,60762.0,0.014817]
[1727876484992,0.290573,60763.0,60762.0,0.014817]
[1727876485198,0.288573,60763.0,60762.0,0.014817]
[1727876486062,0.287573,60763.0,60762.0,0.000817]
[1727876486284,0.288573,60763.0,60762.0,0.000817]
[1727876486510,0.289573,60763.0,60762.0,0.000817]
[1727876486725,0.288573,60763.0,60762.0,0.000817]
[1727876487135,0.295573,60763.0,60762.0,0.000817]
[1727876488024,0.47141511,60763.0,60762.0,0.000817]
[1727876488232,0.297573,60763.0,60762.0,0.000817]
[1727876488700,0.295573,60763.0,60762.0,0.000817]
[1727876488915,0.34111771,60763.0,60762.0,0.000817]
[1727876489121,0.34111771,60763.0,60750.0,0.0484]
[1727876489122,0.264606,60751.0,60750.0,0.0484]
[1727876489327,0.287606,60751.0,60750.0,0.0484]
[1727876489765,0.264606,60751.0,60750.0,0.0484]
[1727876490612,0.285606,60751.0,60750.0,0.0494]
[1727876491018,0.264606,60751.0,60750.0,0.0484]
[1727876491441,0.290606,60751.0,60750.0,0.0484]
[1727876491849,0.267606,60751.0,60750.0,0.0484]
[1727876492262,0.3931256,60751.0,60750.0,0.0484]
[1727876492484,0.164644,60737.0,60736.0,0.24701523]
[1727876492690,0.164644,60737.0,60729.0,0.18522546]
[1727876492909,0.164663,60730.0,60729.0,0.18522546]
[1727876493322,0.329267,60741.0,60726.0,0.165492]
[1727876493323,0.264671,60727.0,60726.0,0.000819]
[1727876494172,0.51168623,60727.0,60726.0,0.000819]
[1727876494393,0.264671,60727.0,60726.0,0.000819]
[1727876494601,0.265671,60727.0,60726.0,0.000819]
[1727876495107,0.268671,60727.0,60726.0,0.000819]
[1727876496176,0.264671,60727.0,60726.0,0.000819]
[1727876496389,0.273671,60727.0,60726.0,0.000819]
[1727876496597,0.012,60727.0,60726.0,0.000819]
[1727876496806,0.009,60727.0,60726.0,0.000819]
[1727876497010,0.164668,60728.0,60726.0,0.0208609]
[1727876497221,0.003,60727.0,60726.0,0.03175148]
[1727876497422,0.009,60727.0,60726.0,0.19642548]
[1727876497628,0.009,60727.0,60726.0,0.03375148]
[1727876497858,0.493987,60731.0,60726.0,0.03375148]
[1727876498071,0.329325,60731.0,60727.0,0.07273855]
[1727876498301,0.1,60733.0,60728.0,0.0804]
[1727876498534,0.1,60733.0,60731.0,0.164659]
[1727876498769,0.24701523,60739.0,60729.0,0.33262389]
[1727876498770,0.24701523,60739.0,60729.0,0.01085912]
[1727876499009,0.329263,60742.0,60730.0,0.031472]
[1727876499010,0.24701523,60738.0,60730.0,0.031472]
[1727876499245,0.164648,60736.0,60730.0,0.031472]
[1727876499472,0.164648,60736.0,60732.0,0.164656]
[1727876499707,0.32924,60746.0,60730.0,0.031472]
[1727876499959,0.24701523,60740.0,60736.0,0.164644]
[1727876500232,0.72331523,60754.0,60735.0,0.164649]
[1727876500233,0.493879,60744.0,60735.0,0.164649]
[1727876500480,0.16464,60739.0,60735.0,0.164648]
[1727876500713,0.1,60743.0,60735.0,0.164648]
[1727876500714,0.002,60736.0,60735.0,0.164648]
[1727876500940,0.002,60736.0,60735.0,0.16699314]
[1727876501176,0.164631,60742.0,60736.0,0.329291]
[1727876501446,0.24701523,60740.0,60735.0,0.11874121]
[1727876501712,0.24865123,60747.0,60735.0,0.11874121]
[1727876501713,0.014,60744.0,60736.0,0.329292]
[1727876501929,0.24701523,60740.0,60730.0,0.031472]
[1727876502169,0.24701523,60740.0,60729.0,0.000818]
[1727876502170,0.164658,60732.0,60729.0,0.41249823]
[1727876502661,0.329308,60734.0,60729.0,0.165483]
[1727876502878,0.329312,60733.0,60729.0,0.000818]
[1727876503127,0.24701523,60740.0,60729.0,0.000818]
[1727876503128,0.164663,60730.0,60729.0,0.000818]
[1727876503361,0.164658,60732.0,60729.0,0.000818]
[1727876503608,0.24701523,60740.0,60729.0,0.000818]
[1727876503869,0.164663,60730.0,60729.0,0.000818]
[1727876504081,0.32929,60737.0,60729.0,0.08038849]
[1727876504323,0.001,60733.0,60729.0,0.26469235]
[1727876504536,0.001,60730.0,60729.0,0.18234212]
[1727876504743,0.001,60730.0,60729.0,0.01167712]
[1727876504950,0.24701523,60740.0,60729.0,0.01167712]
[1727876504951,0.329293,60737.0,60729.0,0.01167712]
[1727876505246,0.164653,60734.0,60730.0,0.164661]
[1727876505477,0.329293,60737.0,60729.0,0.01767712]
[1727876505478,0.001,60737.0,60729.0,0.01767712]
[1727876505713,0.001,60737.0,60731.0,0.01083814]
[1727876505714,0.164657,60732.0,60731.0,0.01083814]
[1727876505980,0.65861,60734.0,60729.0,0.006818]
[1727876505981,0.164663,60730.0,60729.0,0.006818]
[1727876507114,0.164663,60730.0,60729.0,0.000818]
[1727876507328,0.164663,60730.0,60729.0,0.006818]
[1727876507833,0.1,60746.0,60732.0,0.329315]
[1727876508047,0.24701523,60738.0,60734.0,0.164651]
[1727876508279,0.24701523,60738.0,60733.0,0.04384876]
[1727876508280,0.329207,60752.0,60735.0,0.01081449]
[1727876508523,0.329262,60742.0,60737.0,0.164642]
[1727876508758,0.164636,60740.0,60736.0,0.164645]
[1727876508972,0.164626,60744.0,60739.0,0.164638]
[1727876509181,0.164637,60740.0,60737.0,0.01079352]
[1727876509400,0.164636,60740.0,60739.0,0.01077255]
[1727876509626,0.16081989,60740.0,60738.0,0.01078303]
[1727876509842,0.16081989,60740.0,60739.0,0.07928545]
[1727876510314,0.16081989,60740.0,60739.0,0.01077255]
[1727876510524,0.16081989,60740.0,60725.0,0.1968]
[1727876510525,0.164663,60730.0,60725.0,0.1968]
[1727876510944,0.164663,60730.0,60729.0,0.0116954]
[1727876511372,0.164663,60730.0,60729.0,0.000818]
[1727876512237,0.165663,60730.0,60729.0,0.005818]
[1727876513703,0.266663,60730.0,60729.0,0.005818]
[1727876519252,0.51367823,60730.0,60729.0,0.005818]
[1727876519469,0.266663,60730.0,60729.0,0.005818]
[1727876520190,0.265663,60730.0,60729.0,0.000818]
[1727876520446,0.264663,60730.0,60729.0,0.005818]
[1727876520694,0.266663,60730.0,60729.0,0.000818]
[1727876521129,0.264663,60730.0,60729.0,0.000818]
[1727876521568,0.266663,60730.0,60729.0,0.000818]
[1727876522425,0.266663,60730.0,60729.0,0.005818]
[1727876523122,0.002,60730.0,60729.0,0.082518]
[1727876523338,0.002,60730.0,60729.0,0.45380921]
[1727876523631,0.002,60730.0,60729.0,0.46144482]
[1727876523863,0.002,60730.0,60729.0,0.29677982]
[1727876524106,0.164663,60730.0,60729.0,0.09677982]
[1727876524386,0.002,60730.0,60729.0,0.42610782]
[1727876524646,0.002,60730.0,60729.0,0.59077282]
[1727876524891,0.001636,60737.0,60736.0,0.164646]
[1727876525122,0.001636,60737.0,60736.0,0.2469721]
[1727876525363,0.001636,60737.0,60736.0,0.25780669]
[1727876525603,0.001636,60737.0,60736.0,0.09316069]
[1727876526112,0.26628,60737.0,60736.0,0.01083459]
[1727876526362,0.26728,60737.0,60736.0,0.01]
[1727876527099,0.264663,60730.0,60729.0,0.24783323]
[1727876527523,0.264663,60730.0,60729.0,0.01170241]
[1727876527939,0.264663,60730.0,60729.0,0.000818]
[1727876528977,0.264663,60730.0,60729.0,0.004818]
[1727876529409,0.329313,60733.0,60729.0,0.004818]